Workbook

Sheet dimecres mati
C1: GA:
A2: Curs 2024-2025
C3: SLIPI:
A7: Tipus | F7: Assignatura:
A8: Gran Grup | B8: GG | C8: =COUNTIF(E19:FD42,"GG")*0.25 -> 0 | F8: Semestre:
A9: Seminari | B9: A | C9: =COUNTIF(E19:FD42,"A")*0.25 -> 0 | F9: Grau: | L9: Grup: | R9: Curs:
A10: Seminari | B10: B | C10: =COUNTIF(E19:FD42,"B")*0.25 -> 0 | F10: Model docent: | L10: ECTS:
A11: Seminari | B11: C | C11: =COUNTIF(E19:FD42,"C")*0.25 -> 0 | F11: N. Alumnes: | L11: Professor/a respons. assig.:
A12: Avaluació | B12: AV | C12: =COUNTIF(E19:FD42,"AV")*0.25 -> 0 | F12: Hores Gran Grup: | L12: Professors/res assignatures:
A13: Pràct. Labor. | B13: PLA | C13: =COUNTIF(E19:FD42,"PLA")*0.25 -> 0 | F13: Hores per Seminari:
A14: Pràct. Labor. | B14: PLB | C14: =COUNTIF(E19:FD42,"PLB")*0.25 -> 0 | F14: Hores per Pràctiques Laboratori:
A15: Pràct. Labor. | B15: PLC | C15: =COUNTIF(E19:FD42,"PLC")*0.25 -> 0
A16: Tutories | B16: T | C16: =COUNTIF(E19:FD42,"T")*0.25 -> 0
A18: Horari | E18: 2024-09-11 | I18: =E18+7 -> 2024-09-18 | L18: =I18+7 -> 45560 | M18: =I18+7 -> 2024-09-25 | P18: =M18+7 -> 45567 | Q18: =M18+7 -> 2024-10-02 | T18: =Q18+7 -> 45574 | U18: =Q18+7 -> 2024-10-09 | X18: =U18+7 -> 45581 | Y18: =U18+7 -> 2024-10-16 | AB18: =Y18+7 -> 45588 | AC18: =Y18+7 -> 2024-10-23 | AF18: =AC18+7 -> 45595 | AG18: =AC18+7 -> 2024-10-30 | AJ18: =AG18+7 -> 45602 | AK18: =AG18+7 -> 2024-11-06 | AN18: =AK18+7 -> 45609 | AO18: =AK18+7 -> 2024-11-13 | AR18: =AO18+7 -> 45616 | AS18: =AO18+7 -> 2024-11-20 | AV18: =AS18+7 -> 45623 | AW18: =AS18+7 -> 2024-11-27 | AZ18: =AW18+7 -> 45630 | BA18: =AW18+7 -> 2024-12-04 | BD18: =BA18+7 -> 45637 | BE18: =BA18+7 -> 2024-12-11 | BH18: =BE18+7 -> 45644 | BI18: 2025-01-08 | BL18: =BI18+7 -> 45672 | BM18: =BI18+7 -> 2025-01-15 | BP18: =BM18+7 -> 45679 | BQ18: =BM18+7 -> 2025-01-22 | BT18: =BQ18+7 -> 45686 | BU18: =BQ18+7 -> 2025-01-29 | BX18: =BU18+7 -> 45693 | BY18: =BU18+7 -> 2025-02-05 | CB18: =BY18+7 -> 45700 | CC18: =BY18+7 -> 2025-02-12 | CF18: =CC18+7 -> 45707 | CG18: =CC18+7 -> 2025-02-19 | CJ18: =CG18+7 -> 45714 | CK18: =CG18+7 -> 2025-02-26 | CN18: =CK18+7 -> 45721 | CO18: =CK18+7 -> 2025-03-05 | CR18: =CO18+7 -> 45728 | CS18: =CO18+7 -> 2025-03-12 | CV18: =CS18+7 -> 45735 | CW18: =CS18+7 -> 2025-03-19 | CZ18: =CW18+7 -> 45742 | DA18: =CW18+7 -> 2025-03-26 | DD18: =DA18+7 -> 45749 | DE18: =DA18+7 -> 2025-04-02 | DH18: =DE18+7 -> 45756 | DI18: =DE18+7 -> 2025-04-09 | DL18: =DI18+7 -> 45763 | DM18: 2025-04-23 | DP18: =DM18+7 -> 45777 | DQ18: =DM18+7 -> 2025-04-30 | DT18: =DQ18+7 -> 45784 | DU18: =DQ18+7 -> 2025-05-07 | DX18: =DU18+7 -> 45791 | DY18: =DU18+7 -> 2025-05-14 | EB18: =DY18+7 -> 45798 | EC18: =DY18+7 -> 2025-05-21 | EF18: =EC18+7 -> 45805 | EG18: =EC18+7 -> 2025-05-28 | EJ18: =EG18+7 -> 45812 | EK18: =EG18+7 -> 2025-06-04 | EN18: =EK18+7 -> 45819 | EO18: =EK18+7 -> 2025-06-11 | ER18: =EO18+7 -> 45826 | ES18: =EO18+7 -> 2025-06-18 | EV18: =ES18+7 -> 45833 | EW18: =ES18+7 -> 2025-06-25 | EZ18: =EW18+7 -> 45840 | FA18: =EW18+7 -> 2025-07-02 | FD18: =FA18+7 -> 45847
A19: 08:00:00 | C19: 08:15:00
A20: 08:15:00 | C20: 08:30:00
A21: 08:30:00 | C21: 08:45:00
A22: 08:45:00 | C22: 09:00:00
A23: 09:00:00 | C23: 09:15:00
A24: 09:15:00 | C24: 09:30:00
A25: 09:30:00 | C25: 09:45:00
A26: 09:45:00 | C26: 10:00:00
A27: 10:00:00 | C27: 10:15:00
A28: 10:15:00 | C28: 10:30:00
A29: 10:30:00 | C29: 10:45:00
A30: 10:45:00 | C30: 11:00:00
A31: 11:00:00 | C31: 11:15:00
A32: 11:15:00 | C32: 11:30:00
A33: 11:30:00 | C33: 11:45:00
A34: 11:45:00 | C34: 12:00:00
A35: 12:00:00 | C35: 12:15:00
A36: 12:15:00 | C36: 12:30:00
A37: 12:30:00 | C37: 12:45:00
A38: 12:45:00 | C38: 13:00:00
A39: 13:00:00 | C39: 13:15:00
A40: 13:15:00 | C40: 13:30:00
A41: 13:30:00 | C41: 13:45:00
A42: 13:45:00 | C42: 14:00:00
A43: Espai Assignat
A45: Comentaris: | E45: Festiu-Diada Nacional de Catalunya | DI45: Activitat Campus | DM45: Festa Institucional de la Facultat
A96: Model | B96: Aula | D96: ECTS | E96: Assignatures | J96: Grups | K96: Graus | L96: Sem | M96: Curs
A97: 1A | B97: 11 (GA/100) | D97: 3 | K97: GEI | L97: 1er | M97: 1
A98: 1B | B98: 12 (GA/101) | D98: 4 | E98: 101999 Acollida lingüística a l'escola | J98: 1 | K98: GEP | L98: 2on | M98: 2
A99: 2 | B99: 13 (GA/102) | D99: 5 | E99: 106076 Anàlisi, audició i creació | J99: 1/20 | K99: GEP-GEI | L99: Anual | M99: 3
A100: 3 | B100: 14 (GA/103) | D100: 6 | E100: 102061 Aprenentatge de les matemàtiques i currículum | J100: 1/70 | K100: GPE-GES | M100: 4
A101: 4 | B101: 15 (GA/104) | D101: 7 | E101: 102085 Aprenentatge i desenvolupament I | J101: 2 | K101: GES
A102: 5 | B102: 16 (GA/111) | D102: 8 | E102: 105047 Aspectes biopsicològics de la persona | J102: 3 | K102: GPE
A103: 6 | B103: 17 (GA/112) | D103: 9 | E103: 102015 Aspectes instrumentals de les llengües | J103: 4
B104: 18 (GA/117) | D104: 10 | E104: 101657 Bases sociopolítiques de l'educació | J104: 4/40
B105: 19 (GA/119) | D105: 12 | E105: 102042 Didàctica de les ciències socials | J105: 20
B106: 21 (GA/200) | D106: 15 | E106: 101988 Didàctica del coneixement del medi natural i social en educació infantil II | J106: 21
B107: 22 (GA/201) | E107: 102068 Didàctica i desenvolupament curricular | J107: 31
B108: 24 (GA/203) | E108: 105055 Disseny de projectes STEM per a l'aula de Primària | J108: 41
B109: 25 (GA/204) | E109: 101653 Disseny, seguiment i avaluació de plans i programes | J109: 61
B110: 26 (GA/211) | E110: 105048 Educació corporal i psicomotriu en els centres d'educació infantil I | J110: 62
B111: 27 (GA/212) | E111: 105049 Educació corporal i psicomotriu en els centres d'educació infantil II | J111: 70
B112: 28 (GA/218) | E112: 106734 Educació digital i socioemocional | J112: 71
B113: 29 (GA/219) | E113: 101683 Educació en el temps lliure de nens i joves | J113: 90
B114: 31 (GA/300) | E114: 102052 Educació física en l'educació primària | J114: 90/1
B115: 33 (GA/302) | E115: 101644 Educació i contextos educatius
B116: 35 (GA/304) | E116: 101646 Educació i cooperació per al desenvolupament
B117: 36 (GA/311) | E117: 101992 Educació de les arts visuals en educació infantil I
B118: 37 (GA/312) | E118: 101635 Gestió i desenvolupament dels recursos humans en les organitzacions
B119: 39 ( GA/319) | E119: 102059 Gestió i innovació a l'aula de matemàtiques
B120: 41 (GA/400) | E120: 106733 Habilitats comunicatives en l'àmbit educatiu
B121: 43 ( GA/402) | E121: 102005 Infància, salut i alimentació
B122: 44 (GA/403) | E122: 101669 Institucions de justícia i reeducació
B123: 45 (GA/404) | E123: 103581 La Llengua Anglesa en el Món Contemporani: Pràctiques i Contextos
B124: 46 (GA/411) | E124: 101987 La pràctica matemàtica a l'aula d'educació infantil
B125: 47 (GA/412) | E125: 102088 Laboratori i virtualitat en l'educació primària
B126: 48 (GA/418) | E126: 102031 Llenguatges audiovisuals i expressió artística
B127: 49 (GA/419) | E127: 102076 Llenguatges i currículums
B128: 61 (G6/005) | E128: 102075 Llengües i aprenentatge
B129: 62 (G6/006) | E129: 105045 Mirem el món: projectes transdisciplinaris
B130: 63 ( G6/007) | E130: 102028 Necessitats educatives específiques afectives, emocionals i de conducta
B131: 65 (G6/107) | E131: 102027 Necessitats educatives específiques de caràcter cognitiu
B132: 69 (G6/208) | E132: 102026 Necessitats educatives específiques en els processos d'aprenentatge
B133: E.T (G6/009) | E133: 102067 Planificació, investigació i innovació
B134: 51 (G5/-104) | E134: 102030 Projectes artístics
B135: 52 (G5/-106) | E135: 103536 Projectes per Ensenyar i Aprendre Llengua
B136: 71 (GL/505) | E136: 105046 Psicologia evolutiva i de l'educació
B137: 72 (GL/502) | E137: 102086 Valors educatius de la ciència dins i fora de l'aula
B138: 73 (GL/305)
B139: 74 (GL/402)
B140: 81 (GS/012)
B141: 82 (GS/013)
B142: 83 (GB/002)
B143: L1 (GL/102)
B144: L2 (GL/105)
B145: L3 (GA/318)
B146: Inf2 (G6/106)
B147: Inf3 (G6/105)
B148: Inf4 (G6/103)
B149: Inf5 (G6/208)
B150: Inf6 (G6/202)
B151: S1 (GB/012)
B152: S2 (GB/003)
B153: S.foniatria (GB/005)
B154: S. Polivalent (GD/000)
B155: Taller 1 (GL/308)
B156: Taller 2 (GL/306)

Sheet dimecres tarda
C1: GA:
A2: Curs 2024-2025
C3: SLIPI:
A7: Tipus | F7: Assignatura:
A8: Gran Grup | B8: GG | C8: =COUNTIF(E19:FD42,"GG")*0.25 -> 0 | F8: Semestre:
A9: Seminari | B9: A | C9: =COUNTIF(E19:FD42,"A")*0.25 -> 0 | F9: Grau: | L9: Grup: | R9: Curs:
A10: Seminari | B10: B | C10: =COUNTIF(E19:FD42,"B")*0.25 -> 0 | F10: Model docent: | L10: ECTS:
A11: Seminari | B11: C | C11: =COUNTIF(E19:FD42,"C")*0.25 -> 0 | F11: N. Alumnes: | L11: Professor/a respons. assig.:
A12: Avaluació | B12: AV | C12: =COUNTIF(E19:FD42,"AV")*0.25 -> 0 | F12: Hores Gran Grup: | L12: Professors/res assignatures:
A13: Pràct. Labor. | B13: PLA | C13: =COUNTIF(E19:FD42,"PLA")*0.25 -> 0 | F13: Hores per Seminari:
A14: Pràct. Labor. | B14: PLB | C14: =COUNTIF(E19:FD42,"PLB")*0.25 -> 0 | F14: Hores per Pràctiques Laboratori:
A15: Pràct. Labor. | B15: PLC | C15: =COUNTIF(E19:FD42,"PLC")*0.25 -> 0
A16: Tutories | B16: T | C16: =COUNTIF(E19:FD42,"T")*0.25 -> 0
A18: Horari | E18: 2024-09-11 | I18: =E18+7 -> 2024-09-18 | L18: =I18+7 -> 45560 | M18: =I18+7 -> 2024-09-25 | P18: =M18+7 -> 45567 | Q18: =M18+7 -> 2024-10-02 | T18: =Q18+7 -> 45574 | U18: =Q18+7 -> 2024-10-09 | X18: =U18+7 -> 45581 | Y18: =U18+7 -> 2024-10-16 | AB18: =Y18+7 -> 45588 | AC18: =Y18+7 -> 2024-10-23 | AF18: =AC18+7 -> 45595 | AG18: =AC18+7 -> 2024-10-30 | AJ18: =AG18+7 -> 45602 | AK18: =AG18+7 -> 2024-11-06 | AN18: =AK18+7 -> 45609 | AO18: =AK18+7 -> 2024-11-13 | AR18: =AO18+7 -> 45616 | AS18: =AO18+7 -> 2024-11-20 | AV18: =AS18+7 -> 45623 | AW18: =AS18+7 -> 2024-11-27 | AZ18: =AW18+7 -> 45630 | BA18: =AW18+7 -> 2024-12-04 | BD18: =BA18+7 -> 45637 | BE18: =BA18+7 -> 2024-12-11 | BH18: =BE18+7 -> 45644 | BI18: 2025-01-08 | BL18: =BI18+7 -> 45672 | BM18: =BI18+7 -> 2025-01-15 | BP18: =BM18+7 -> 45679 | BQ18: =BM18+7 -> 2025-01-22 | BT18: =BQ18+7 -> 45686 | BU18: =BQ18+7 -> 2025-01-29 | BX18: =BU18+7 -> 45693 | BY18: =BU18+7 -> 2025-02-05 | CB18: =BY18+7 -> 45700 | CC18: =BY18+7 -> 2025-02-12 | CF18: =CC18+7 -> 45707 | CG18: =CC18+7 -> 2025-02-19 | CJ18: =CG18+7 -> 45714 | CK18: =CG18+7 -> 2025-02-26 | CN18: =CK18+7 -> 45721 | CO18: =CK18+7 -> 2025-03-05 | CR18: =CO18+7 -> 45728 | CS18: =CO18+7 -> 2025-03-12 | CV18: =CS18+7 -> 45735 | CW18: =CS18+7 -> 2025-03-19 | CZ18: =CW18+7 -> 45742 | DA18: =CW18+7 -> 2025-03-26 | DD18: =DA18+7 -> 45749 | DE18: =DA18+7 -> 2025-04-02 | DH18: =DE18+7 -> 45756 | DI18: =DE18+7 -> 2025-04-09 | DL18: =DI18+7 -> 45763 | DM18: 2025-04-23 | DP18: =DM18+7 -> 45777 | DQ18: =DM18+7 -> 2025-04-30 | DT18: =DQ18+7 -> 45784 | DU18: =DQ18+7 -> 2025-05-07 | DX18: =DU18+7 -> 45791 | DY18: =DU18+7 -> 2025-05-14 | EB18: =DY18+7 -> 45798 | EC18: =DY18+7 -> 2025-05-21 | EF18: =EC18+7 -> 45805 | EG18: =EC18+7 -> 2025-05-28 | EJ18: =EG18+7 -> 45812 | EK18: =EG18+7 -> 2025-06-04 | EN18: =EK18+7 -> 45819 | EO18: =EK18+7 -> 2025-06-11 | ER18: =EO18+7 -> 45826 | ES18: =EO18+7 -> 2025-06-18 | EV18: =ES18+7 -> 45833 | EW18: =ES18+7 -> 2025-06-25 | EZ18: =EW18+7 -> 45840 | FA18: =EW18+7 -> 2025-07-02 | FD18: =FA18+7 -> 45847
A19: 15:00:00 | C19: 15:15:00
A20: 15:15:00 | C20: 15:30:00
A21: 15:30:00 | C21: 15:45:00
A22: 15:45:00 | C22: 16:00:00
A23: 16:00:00 | C23: 16:15:00
A24: 16:15:00 | C24: 16:30:00
A25: 16:30:00 | C25: 16:45:00
A26: 16:45:00 | C26: 17:00:00
A27: 17:00:00 | C27: 17:15:00
A28: 17:15:00 | C28: 17:30:00
A29: 17:30:00 | C29: 17:45:00
A30: 17:45:00 | C30: 18:00:00
A31: 18:00:00 | C31: 18:15:00
A32: 18:15:00 | C32: 18:30:00
A33: 18:30:00 | C33: 18:45:00
A34: 18:45:00 | C34: 19:00:00
A35: 19:00:00 | C35: 19:15:00
A36: 19:15:00 | C36: 19:30:00
A37: 19:30:00 | C37: 19:45:00
A38: 19:45:00 | C38: 20:00:00
A39: 20:00:00 | C39: 20:15:00
A40: 20:15:00 | C40: 20:30:00
A41: 20:30:00 | C41: 20:45:00
A42: 20:45:00 | C42: 21:00:00
A43: Espai Assignat
A45: Comentaris: | E45: Festiu-Diada Nacional de Catalunya | BA45: Activitats Campus | DI45: Activitat Campus | DM45: Festa Institucional de la Facultat
A96: Model | B96: Aula | D96: ECTS | E96: Assignatures | J96: Grups | K96: Graus | L96: Sem | M96: Curs
A97: 1A | B97: 11 (GA/100) | D97: 3 | K97: GEI | L97: 1er | M97: 1
A98: 1B | B98: 12 (GA/101) | D98: 4 | E98: 101999 Acollida lingüística a l'escola | J98: 1 | K98: GEP | L98: 2on | M98: 2
A99: 2 | B99: 13 (GA/102) | D99: 5 | E99: 106076 Anàlisi, audició i creació | J99: 1/20 | K99: GEP-GEI | L99: Anual | M99: 3
A100: 3 | B100: 14 (GA/103) | D100: 6 | E100: 102061 Aprenentatge de les matemàtiques i currículum | J100: 1/70 | K100: GPE-GES | M100: 4
A101: 4 | B101: 15 (GA/104) | D101: 7 | E101: 102085 Aprenentatge i desenvolupament I | J101: 2 | K101: GES
A102: 5 | B102: 16 (GA/111) | D102: 8 | E102: 105047 Aspectes biopsicològics de la persona | J102: 3 | K102: GPE
A103: 6 | B103: 17 (GA/112) | D103: 9 | E103: 102015 Aspectes instrumentals de les llengües | J103: 4
B104: 18 (GA/117) | D104: 10 | E104: 101657 Bases sociopolítiques de l'educació | J104: 4/40
B105: 19 (GA/119) | D105: 12 | E105: 102042 Didàctica de les ciències socials | J105: 20
B106: 21 (GA/200) | D106: 15 | E106: 101988 Didàctica del coneixement del medi natural i social en educació infantil II | J106: 21
B107: 22 (GA/201) | E107: 102068 Didàctica i desenvolupament curricular | J107: 31
B108: 24 (GA/203) | E108: 105055 Disseny de projectes STEM per a l'aula de Primària | J108: 41
B109: 25 (GA/204) | E109: 101653 Disseny, seguiment i avaluació de plans i programes | J109: 61
B110: 26 (GA/211) | E110: 105048 Educació corporal i psicomotriu en els centres d'educació infantil I | J110: 62
B111: 27 (GA/212) | E111: 105049 Educació corporal i psicomotriu en els centres d'educació infantil II | J111: 70
B112: 28 (GA/218) | E112: 106734 Educació digital i socioemocional | J112: 71
B113: 29 (GA/219) | E113: 101683 Educació en el temps lliure de nens i joves | J113: 90
B114: 31 (GA/300) | E114: 102052 Educació física en l'educació primària | J114: 90/1
B115: 33 (GA/302) | E115: 101644 Educació i contextos educatius
B116: 35 (GA/304) | E116: 101646 Educació i cooperació per al desenvolupament
B117: 36 (GA/311) | E117: 101992 Educació de les arts visuals en educació infantil I
B118: 37 (GA/312) | E118: 101635 Gestió i desenvolupament dels recursos humans en les organitzacions
B119: 39 ( GA/319) | E119: 102059 Gestió i innovació a l'aula de matemàtiques
B120: 41 (GA/400) | E120: 106733 Habilitats comunicatives en l'àmbit educatiu
B121: 43 ( GA/402) | E121: 102005 Infància, salut i alimentació
B122: 44 (GA/403) | E122: 101669 Institucions de justícia i reeducació
B123: 45 (GA/404) | E123: 103581 La Llengua Anglesa en el Món Contemporani: Pràctiques i Contextos
B124: 46 (GA/411) | E124: 101987 La pràctica matemàtica a l'aula d'educació infantil
B125: 47 (GA/412) | E125: 102088 Laboratori i virtualitat en l'educació primària
B126: 48 (GA/418) | E126: 102031 Llenguatges audiovisuals i expressió artística
B127: 49 (GA/419) | E127: 102076 Llenguatges i currículums
B128: 61 (G6/005) | E128: 102075 Llengües i aprenentatge
B129: 62 (G6/006) | E129: 105045 Mirem el món: projectes transdisciplinaris
B130: 63 ( G6/007) | E130: 102028 Necessitats educatives específiques afectives, emocionals i de conducta
B131: 65 (G6/107) | E131: 102027 Necessitats educatives específiques de caràcter cognitiu
B132: 69 (G6/208) | E132: 102026 Necessitats educatives específiques en els processos d'aprenentatge
B133: E.T (G6/009) | E133: 102067 Planificació, investigació i innovació
B134: 51 (G5/-104) | E134: 102030 Projectes artístics
B135: 52 (G5/-106) | E135: 103536 Projectes per Ensenyar i Aprendre Llengua
B136: 71 (GL/505) | E136: 105046 Psicologia evolutiva i de l'educació
B137: 72 (GL/502) | E137: 102086 Valors educatius de la ciència dins i fora de l'aula
B138: 73 (GL/305)
B139: 74 (GL/402)
B140: 81 (GS/012)
B141: 82 (GS/013)
B142: 83 (GB/002)
B143: L1 (GL/102)
B144: L2 (GL/105)
B145: L3 (GA/318)
B146: Inf2 (G6/106)
B147: Inf3 (G6/105)
B148: Inf4 (G6/103)
B149: Inf5 (G6/208)
B150: Inf6 (G6/202)
B151: S1 (GB/012)
B152: S2 (GB/003)
B153: S.foniatria (GB/005)
B154: S. Polivalent (GD/000)
B155: Taller 1 (GL/308)
B156: Taller 2 (GL/306)
